bitfinex-derivatives/quotes_SOLF0:USTF0_20241015
["timestamp","ask_amount","ask_price","bid_price","bid_amount"]
[1728993447270,28.5113,152.41,152.36,3.282]
[1728993447473,28.5113,152.41,152.35,1.3766]
[1728993448079,28.5113,152.41,152.38,3.2815]
[1728993448374,25.23,152.41,152.35,1.3766]
[1728993448578,25.23,152.44,152.41,3.2809]
[1728993448774,1.00592767,152.43,152.41,3.2809]
[1728993449377,26.6318,152.49,152.44,3.2803]
[1728993449571,1.00602615,152.48,152.44,3.2803]
[1728993449767,3.2801,152.46,152.37,6.5]
[1728993449974,3.2801,152.46,152.42,3.2808]
[1728993449975,1.00602615,152.45,152.42,3.2808]
[1728993450475,4.28642615,152.45,152.38,6.5]
[1728993450665,1.00602615,152.44,152.38,6.5]
[1728993451276,1.00602615,152.44,152.43,3.2806]
[1728993453277,1.00585987,152.44,152.43,3.2806]
[1728993453579,1.00585987,152.45,152.43,3.2806]
[1728993453972,4.28605987,152.45,152.43,3.2806]
[1728993454174,1.00585987,152.44,152.43,3.2806]
[1728993454578,29.51645987,152.44,152.36,1.3332]
[1728993454769,28.5106,152.44,152.37,6.3]
[1728993455276,25.23,152.39,152.36,1.3332]
[1728993455671,25.23,152.39,152.35,2.7982]
[1728993455878,15.78,152.36,152.35,1.3766]
[1728993456073,15.78,152.36,152.31,1.3797]
[1728993456378,15.78,152.34,152.33,3.2827]
[1728993456584,15.78,152.34,152.3,1.2913]
[1728993457077,15.78,152.34,152.28,1.3697]
[1728993457670,15.78,152.34,152.32,3.283]
[1728993457875,3.2825,152.35,152.32,3.283]
[1728993457876,28.5125,152.35,152.32,3.283]
[1728993458184,25.23,152.35,152.28,1.3697]
[1728993459071,3.2826,152.34,152.31,3.2831]
[1728993460177,25.23,152.32,152.22,6.3]
[1728993460385,25.23,152.3,152.23,1.54028]
[1728993461379,28.5136,152.3,152.26,3.2841]
[1728993461584,28.5136,152.3,152.23,1.54028]
[1728993462478,28.5136,152.3,152.26,3.2842]
[1728993462684,3.2837,152.29,152.26,3.2842]
[1728993462884,25.23,152.3,152.26,3.2842]
[1728993463286,28.5136,152.3,152.26,3.2842]
[1728993463482,25.23,152.3,152.26,3.2842]
[1728993464787,28.5136,152.3,152.26,3.2842]
[1728993465291,25.23,152.3,152.23,1.54028]
[1728993465592,3.2839,152.28,152.25,3.2844]
[1728993466189,25.23,152.3,152.23,1.54028]
[1728993466393,6.3,152.31,152.23,1.54028]
[1728993466994,9.5834,152.31,152.27,3.284]
[1728993467190,9.5834,152.31,152.23,1.54028]
[1728993467383,34.8131,152.32,152.28,3.2837]
[1728993467588,31.53,152.32,152.23,1.54028]
[1728993467895,3.2836,152.3,152.26,3.2841]
[1728993468389,25.23,152.32,152.23,1.54028]
[1728993468601,6.3,152.32,152.29,3.2835]
[1728993469087,6.3,152.32,152.24,6.3]
[1728993469696,3.2829,152.33,152.29,3.2835]
[1728993470294,3.2829,152.33,152.24,6.3]
[1728993470502,6.3,152.34,152.25,25.23]
[1728993470692,6.3,152.34,152.25,26.5839]
[1728993470891,6.3,152.34,152.3,3.2833]
[1728993471091,3.2828,152.33,152.3,3.2833]
[1728993471392,6.3,152.34,152.27,3.2839]
[1728993471601,3.2833,152.31,152.25,1.3539]
[1728993472296,7.5963,152.34,152.25,1.3539]
[1728993472800,7.5963,152.34,152.24,6.3]
[1728993473097,3.2838,152.29,152.23,1.54028]
[1728993474597,3.2838,152.29,152.26,3.2842]
[1728993475700,3.2838,152.29,152.23,0.12518]
[1728993475903,9.5835,152.3,152.23,0.12518]
[1728993476201,6.3,152.3,152.23,0.12518]
[1728993476402,3.2837,152.29,152.26,3.2841]
[1728993476604,6.3,152.3,152.23,0.12518]
[1728993477099,3.2837,152.29,152.23,0.12518]
[1728993477296,1.2963,152.34,152.23,25.35518]
[1728993477504,6.3,152.33,152.23,25.35518]
[1728993477904,3.2833,152.31,152.28,3.2837]
[1728993478303,4.28939446,152.3,152.27,3.2839]
[1728993478501,6.3,152.31,152.23,25.35518]
[1728993478705,1.00628258,152.3,152.23,25.35518]
[1728993478906,3.2839,152.28,152.25,3.2845]
[1728993479404,6.3,152.31,152.23,0.12518]
[1728993479607,3.2842,152.27,152.24,3.2846]
[1728993479903,3.2842,152.27,152.23,0.12518]
[1728993480700,3.2842,152.27,152.24,3.2847]
[1728993480903,15.78,152.29,152.24,3.2847]
[1728993481414,15.78,152.29,152.23,3.41008]
[1728993481604,15.78,152.29,152.23,0.12518]
[1728993481905,3.2843,152.27,152.24,3.2847]
[1728993482105,15.78,152.29,152.24,3.2847]
[1728993482305,3.2843,152.27,152.24,3.2847]
[1728993482712,15.78,152.29,152.26,3.2842]
[1728993482911,3.284,152.28,152.23,0.12518]
[1728993483411,3.284,152.28,152.24,3.2846]
[1728993483600,15.78,152.29,152.23,0.12518]
[1728993484308,3.2842,152.27,152.24,3.2846]
[1728993484605,3.2842,152.27,152.23,0.12518]
[1728993484811,15.78,152.31,152.23,0.12518]
[1728993485012,1.00628036,152.3,152.23,15.90518]
[1728993485313,21.82,152.33,152.24,1.3559]
[1728993485508,21.82,152.33,152.27,3.284]
[1728993485509,1.00641556,152.32,152.27,3.284]
[1728993485713,15.78,152.31,152.24,7.3959]
[1728993486019,3.2842,152.27,152.23,0.12518]
[1728993487014,3.2842,152.27,152.24,3.2847]
[1728993487224,3.284,152.28,152.23,0.12518]
[1728993487716,21.82,152.29,152.23,0.12518]
[1728993487922,3.2841,152.27,152.23,0.12518]
[1728993488429,15.78,152.27,152.23,0.12518]
[1728993489321,15.78,152.27,152.23,3.40998]
[1728993489923,15.78,152.27,152.23,0.12518]
[1728993490126,15.78,152.25,152.23,0.12518]
[1728993490521,3.2845,152.26,152.24,3.2847]
[1728993490727,15.78,152.27,152.23,0.12518]
[1728993490921,19.0641,152.27,152.23,0.12518]
[1728993491125,19.0641,152.27,152.24,3.2846]
[1728993491920,19.0642,152.27,152.24,3.2847]
[1728993492119,15.78,152.27,152.24,3.2847]
[1728993492520,3.2844,152.26,152.24,3.2847]
[1728993493118,3.2844,152.26,152.23,0.12518]
[1728993493329,3.2847,152.25,152.23,0.12518]
[1728993493823,3.2847,152.24,152.23,0.12518]
[1728993495230,15.78,152.27,152.23,0.12518]
[1728993495732,3.2844,152.26,152.23,3.40998]
[1728993497131,15.78,152.27,152.24,3.2846]
[1728993497331,15.78,152.27,152.23,0.12518]
[1728993497531,3.2844,152.26,152.24,3.2846]
[1728993498032,3.2847,152.24,152.23,0.12518]
[1728993498429,21.82,152.25,152.17,1.3464]
[1728993498734,3.2853,152.22,152.17,1.3464]
[1728993498918,15.78,152.23,152.17,1.3464]
[1728993499432,3.2853,152.22,152.19,3.2857]
[1728993500325,3.2853,152.22,152.2,3.2855]
[1728993501129,19.065,152.23,152.2,3.2855]
[1728993501321,21.82,152.25,152.17,1.3464]
[1728993501723,3.2851,152.23,152.17,1.3464]
[1728993501927,3.2851,152.23,152.2,3.2855]
[1728993502332,21.82,152.25,152.22,3.2852]
[1728993502536,21.82,152.25,152.18,15.78]
[1728993502537,15.78,152.25,152.18,15.78]
[1728993502929,19.0646,152.25,152.22,3.2851]
[1728993503233,15.78,152.27,152.18,15.78]
[1728993503428,21.82,152.27,152.18,15.78]
[1728993503626,3.2845,152.25,152.18,15.78]
[1728993503827,21.82,152.27,152.18,15.78]
[1728993504132,21.82,152.27,152.18,21.82]
[1728993504837,3.2848,152.24,152.22,3.2851]
[1728993505134,21.82,152.27,152.18,21.82]
[1728993506235,3.2845,152.25,152.2,3.2854]
[1728993506433,3.2845,152.25,152.18,21.82]
[1728993507035,3.2845,152.25,152.22,3.285]
[1728993507230,3.2845,152.25,152.18,21.82]
[1728993507534,3.2845,152.25,152.22,3.285]
[1728993507836,13.3845,152.25,152.22,3.285]
[1728993508031,6.04,152.27,152.21,10.1]
[1728993508226,10.1,152.25,152.21,10.1]
[1728993508638,10.1,152.24,152.21,10.1]
[1728993509335,10.1,152.24,152.23,3.2849]
[1728993509733,10.1,152.24,152.19,10.1]
[1728993509935,13.3848,152.24,152.18,6.04]
[1728993510141,13.3848,152.24,152.19,10.1]
[1728993510437,13.3848,152.24,152.2,3.2855]
[1728993510637,3.2851,152.23,152.19,10.1]
[1728993510833,10.1,152.23,152.19,10.1]
[1728993511440,10.1,152.23,152.21,3.2853]
[1728993513135,10.1,152.23,152.19,10.1]
[1728993514541,10.1,152.23,152.21,3.2852]
[1728993514742,10.1,152.23,152.19,10.1]
[1728993515240,10.1,152.23,152.21,3.2852]
[1728993515542,13.385,152.23,152.21,3.2852]
[1728993515738,10.1,152.22,152.17,1.3464]
[1728993515937,10.1,152.22,152.18,10.1]
[1728993516841,13.3853,152.22,152.19,3.2858]
[1728993517144,10.1,152.21,152.19,3.2858]
[1728993517649,13.3853,152.22,152.2,3.2855]
[1728993519040,13.3853,152.22,152.17,11.4464]
[1728993519241,13.3853,152.22,152.19,3.2857]
[1728993519845,10.1,152.22,152.19,3.2857]
[1728993520043,13.3853,152.22,152.18,3.2859]
[1728993520241,10.1,152.22,152.17,10.1]
[1728993520656,10.1,152.18,152.11,5.82]
[1728993520945,1.4079,152.22,152.15,10.1]
[1728993521146,13.3856,152.2,152.17,3.2861]
[1728993521642,1.4079,152.22,152.16,10.1]
[1728993521845,10.1,152.22,152.17,10.1]
[1728993522547,10.1,152.21,152.16,10.1]
[1728993522849,10.1,152.21,152.16,13.3863]
[1728993523044,10.1,152.21,152.16,10.1]
[1728993523243,3.2859,152.19,152.16,10.1]
[1728993523444,3.2859,152.19,152.17,3.2862]
[1728993524143,10.1,152.21,152.11,9.15104082]
[1728993524350,3.2862,152.18,152.16,10.1]
[1728993525349,10.1,152.21,152.16,13.3864]
[1728993525544,3.2859,152.19,152.16,13.3864]
[1728993526042,13.3856,152.2,152.16,10.1]
[1728993526545,10.1,152.2,152.16,10.1]
[1728993526745,3.2859,152.19,152.17,3.2861]
[1728993527547,10.1,152.2,152.17,3.2861]
[1728993527742,10.1,152.2,152.11,9.15104082]
[1728993527947,10.1,152.2,152.16,13.3864]
[1728993528552,3.286,152.18,152.16,13.3864]
[1728993528756,15.92,152.19,152.1,2.7052]
[1728993528957,15.92,152.19,152.14,10.1]
[1728993529148,77.5693,152.25,152.1,2.7052]
[1728993529453,10.1,152.21,152.16,10.1]
[1728993529652,3.2858,152.19,152.11,5.82]
[1728993529854,5.82,152.2,152.16,10.1]
[1728993530461,3.33520566,152.24,152.2,3.2854]
[1728993530647,1.00247228,152.23,152.2,3.2854]
[1728993530850,11.10247228,152.23,152.18,10.1]
[1728993531048,10.1,152.23,152.19,3.2857]
[1728993531351,3.2853,152.22,152.19,3.2857]
[1728993531558,15.92,152.21,152.17,3.2862]
[1728993531752,3.2857,152.2,152.17,3.2862]
[1728993531954,10.1,152.2,152.16,1.3942]
[1728993532457,13.3858,152.2,152.17,3.2861]
[1728993533459,3.2858,152.2,152.17,3.2861]
[1728993534454,15.92,152.21,152.16,11.4942]
[1728993535451,3.2857,152.2,152.17,3.2862]
[1728993536052,3.2857,152.2,152.16,11.4942]
[1728993536252,3.2857,152.2,152.17,3.2862]
[1728993537053,15.92,152.21,152.17,3.2862]
[1728993537054,5.82,152.21,152.17,10.1]
[1728993537462,5.82,152.21,152.19,3.2857]
[1728993538467,19.2054,152.21,152.19,3.2857]
[1728993538869,5.82,152.21,152.18,10.1]
[1728993539164,5.82,152.21,152.2,3.2856]
[1728993539558,5.82,152.21,152.19,3.2857]
[1728993540462,5.82,152.21,152.18,10.1]
[1728993540659,10.1,152.19,152.04,0.12518]
[1728993540861,58.91137154,152.13,151.94,15.63315332]
[1728993541162,58.91137154,152.13,151.97,10.1]
[1728993541163,7.6055,152.12,151.97,10.1]
[1728993541363,1.00105633,152.11,152.01,1.3358]
[1728993541562,10.1,152.03,152.01,1.3358]
[1728993541764,1.00105633,152.02,152.01,1.3358]
[1728993542168,1.00105633,152.02,151.94,4.19735332]
[1728993542463,2.38661031,152.12,151.92,10.1]
[1728993542464,1.00105633,152.01,151.92,10.1]
[1728993542670,10.1,151.99,151.93,10.1]
[1728993542858,1.00105633,151.98,151.93,10.1]
[1728993543058,10.1,151.97,151.92,10.1]
[1728993543258,10.1,151.96,151.87,12.7535637]
[1728993543464,10.1,151.96,151.87,6.5335637]
[1728993543666,74.36879585,152.09,151.87,6.5335637]
[1728993543667,10.1,151.93,151.88,10.1]
[1728993543863,94.08879585,152.09,151.86,6.22]
[1728993543864,10.1,151.91,151.86,6.22]
[1728993544068,10.1,151.91,151.76,44.38368546]
[1728993544069,6.22,151.95,151.85,3.32708489]
[1728993544371,10.1,151.92,151.86,10.1]
[1728993545164,10.1,151.9,151.72,71.02]
[1728993545365,10.1,151.87,151.72,71.02]
[1728993545672,10.1,151.86,151.8,10.1]
[1728993545874,15.82,151.91,151.8,15.82]
[1728993546172,15.82,151.91,151.79,3.3728282]
[1728993546173,1.02171359,151.9,151.83,15.82]
[1728993546471,15.82,152.01,151.88,15.82]
[1728993546668,6.58,151.99,151.91,15.82]
[1728993547374,71.06,152.04,151.91,15.82]
[1728993547573,3.2906,151.97,151.92,1.3955]
[1728993549179,6.58,151.99,151.92,1.3955]
[1728993549376,1.01445423,151.98,151.92,1.3955]
[1728993549577,4.30464086,151.98,151.93,15.82]
[1728993549776,1.01414086,151.97,151.93,15.82]
[1728993550169,6.58,151.99,151.93,15.82]
[1728993550373,3.2908,151.97,151.93,15.82]
[1728993550679,6.58,151.99,151.92,1.3955]
[1728993550884,1.01401512,151.98,151.92,1.3955]
[1728993551174,1.01401512,151.98,151.93,15.82]
[1728993551477,6.58,151.99,151.93,15.82]
[1728993551685,3.2903,151.99,151.93,15.82]
[1728993551980,6.58,152.0,151.93,15.82]
[1728993552180,6.58,152.0,151.95,15.82]
[1728993552181,3.2903,151.99,151.95,15.82]
[1728993552482,6.58,152.02,151.97,15.82]
[1728993552674,6.58,152.03,151.97,15.82]
[1728993552874,3.2899,152.01,151.97,15.82]
[1728993553071,3.28023056,152.08,151.99,15.82]
[1728993553272,1.3497,152.1,152.01,15.82]
[1728993553471,3.2888,152.06,152.03,15.82]
[1728993553671,3.2888,152.06,152.04,1.292]
[1728993553871,6.58,152.1,152.04,1.292]
[1728993554078,15.82,152.08,151.99,15.82]
[1728993554278,15.82,152.06,151.99,1.292]
[1728993554474,3.2899,152.0,151.99,1.292]
[1728993554675,6.58,152.05,151.99,1.292]
[1728993554883,6.58,152.05,151.95,15.82]
[1728993554884,15.82,152.04,151.95,15.82]
[1728993555183,15.82,152.02,151.95,1.3879]
[1728993555485,6.58,152.01,151.95,1.3879]
[1728993555685,15.82,152.0,151.95,1.3879]
[1728993555882,3.2902,151.99,151.95,1.3879]
[1728993556184,15.82,152.0,151.95,1.3879]
[1728993556580,1.8636,152.1,151.96,15.82]
[1728993556784,15.82,152.05,151.96,15.82]
[1728993556983,6.58,152.04,151.96,15.82]
[1728993557382,15.82,152.05,151.96,15.82]
[1728993557576,3.2892,152.04,151.95,1.3879]
[1728993557781,15.82,152.05,151.96,15.82]
[1728993558084,3.2897,152.02,151.96,18.615]
[1728993558287,15.82,152.03,151.96,2.795]
[1728993558585,22.4,152.03,151.96,2.795]
[1728993559291,15.82,151.99,151.95,1.3879]
[1728993559982,3.2905,151.98,151.95,1.3879]
[1728993560383,3.2904,151.98,151.95,1.3879]
[1728993561090,15.82,152.01,151.95,1.3879]
[1728993561388,6.58,152.03,151.95,1.3879]
[1728993561588,3.2899,152.0,151.95,1.3879]
[1728993562078,15.82,152.06,151.96,15.82]
[1728993562283,6.58,152.05,151.98,15.82]
[1728993562483,6.58,152.06,151.98,15.82]
[1728993562784,15.82,152.08,151.98,15.82]
[1728993562986,3.2888,152.05,151.98,19.1101]
[1728993563389,6.58,152.07,151.98,19.1101]
[1728993563582,3.2891,152.04,151.98,19.1101]
[1728993563778,1.3325,152.09,152.0,15.82]
[1728993563985,7.9125,152.09,152.0,15.82]
[1728993564192,1.3325,152.09,152.0,15.82]
[1728993564387,15.82,152.1,152.0,15.82]
[1728993564587,3.2884,152.07,152.02,15.82]
[1728993564987,3.2884,152.07,151.98,6.58]
[1728993565192,3.2884,152.07,152.01,3.2897]
[1728993565393,15.82,152.09,152.0,15.82]
[1728993565591,6.58,152.1,152.0,15.82]
[1728993565786,6.58,152.1,152.02,15.82]
[1728993565986,15.82,152.11,152.03,1.3616]
[1728993566192,22.4,152.11,152.03,1.3616]
[1728993566394,22.4,152.11,152.03,4.6508]
[1728993566891,3.288,152.09,152.03,4.6508]
[1728993567493,3.2885,152.07,152.03,1.3616]
[1728993567888,6.58,152.1,152.03,1.3616]
[1728993568691,3.2883,152.08,152.03,4.6508]
[1728993569297,9.8679,152.1,152.05,3.2887]
[1728993569597,3.2879,152.1,152.05,3.2887]
[1728993570494,6.58,152.11,152.05,3.2887]
[1728993570800,6.5705,152.22,152.06,15.82]
[1728993570987,6.58,152.14,152.06,15.82]
[1728993571298,17.1533,152.17,152.07,3.2882]
[1728993571499,17.1533,152.17,152.08,15.82]
[1728993571798,17.1533,152.17,152.04,2.6323]
[1728993571799,9.8666,152.16,152.11,15.82]
[1728993571995,3.2866,152.16,152.11,15.82]
[1728993572192,3.2864,152.17,152.11,15.82]
[1728993572393,71.08,152.23,152.14,15.82]
[1728993572394,1.3333,152.22,152.14,15.82]
[1728993572586,1.3333,152.22,152.16,15.82]
[1728993572788,3.2841,152.27,152.2,15.82]
[1728993573297,3.284,152.28,152.22,15.82]
[1728993573797,3.284,152.28,152.22,28.5152]
[1728993574103,4.617,152.29,152.22,25.23]
[1728993574394,1.3333,152.29,152.22,28.515]
[1728993574598,3.2839,152.28,152.22,28.515]
[1728993574795,3.2839,152.28,152.22,29.8066]
[1728993575399,4.617,152.29,152.23,3.2849]
[1728993575998,3.2837,152.29,152.23,3.2849]
[1728993576498,3.2844,152.26,152.22,1.2916]
[1728993577299,3.35120651,152.41,152.24,25.23]
[1728993577495,3.35120651,152.41,152.31,25.23]
[1728993577496,10.21378133,152.4,152.31,25.23]
[1728993577692,1.3544,152.4,152.33,25.23]
[1728993577903,6.54,152.43,152.33,25.23]
[1728993578098,6.54,152.43,152.35,3.2822]
[1728993578297,9.80788916,152.43,152.35,3.2822]
[1728993578604,9.80788916,152.43,152.33,25.23]
[1728993578800,6.54,152.43,152.34,3.2825]
[1728993579002,6.54,152.43,152.29,6.54]
[1728993579202,6.54,152.43,152.32,25.23]
[1728993579499,6.54,152.43,152.33,3.2826]
[1728993580504,6.54,152.43,152.34,3.2824]
[1728993581301,6.54,152.43,152.36,3.2821]
[1728993581503,1.3544,152.44,152.36,3.2821]
[1728993581801,7.8744,152.44,152.37,25.23]
[1728993582195,7.8744,152.44,152.37,28.5117]
[1728993582400,7.8744,152.44,152.37,25.23]
[1728993582906,7.8744,152.44,152.37,28.5119]
[1728993583103,7.8744,152.44,152.37,25.23]
[1728993583602,7.8744,152.44,152.37,28.5118]
[1728993583807,7.8744,152.44,152.37,25.23]
[1728993584299,7.8744,152.44,152.38,3.2816]
[1728993584497,7.8744,152.44,152.37,25.23]
[1728993584696,71.0,152.52,152.4,3.2811]
[1728993584697,25.23,152.51,152.4,3.2811]
[1728993584897,7.537876,152.5,152.4,3.2811]
[1728993585097,9.79172826,152.5,152.4,3.2811]
[1728993585505,6.52,152.5,152.43,3.2806]
[1728993586204,9.78220693,152.5,152.43,3.2806]
[1728993586405,9.78220693,152.5,152.4,25.23]
[1728993586708,9.78220693,152.5,152.42,3.2807]
[1728993587100,3.2787,152.52,152.47,3.2796]
[1728993587305,9.7987,152.52,152.47,3.2796]
[1728993588000,3.279,152.51,152.46,3.2799]
[1728993588316,6.52,152.52,152.44,25.23]
[1728993588604,3.2792,152.5,152.46,3.2799]
[1728993589197,6.52,152.52,152.45,1.357]
[1728993589599,7.8851,152.54,152.45,1.357]
[1728993589803,6.52,152.54,152.47,25.23]
[1728993590414,3.2785,152.53,152.47,3.2796]
[1728993590617,6.52,152.55,152.45,7.877]
[1728993591012,3.2783,152.54,152.49,3.2792]
[1728993591708,7.8276,152.57,152.49,3.2793]
[1728993591913,7.8276,152.57,152.45,7.877]
[1728993592412,3.2784,152.54,152.49,3.2792]
[1728993593007,7.8276,152.57,152.49,3.2792]
[1728993593916,3.2784,152.54,152.49,3.2792]
[1728993594713,3.2785,152.53,152.49,3.2792]
[1728993595906,7.8276,152.57,152.45,7.877]
[1728993596107,7.8276,152.57,152.47,25.23]
[1728993596614,25.23,152.56,152.47,3.2797]
[1728993597213,3.2792,152.5,152.46,3.2799]
[1728993597714,6.52,152.53,152.45,1.357]
[1728993598018,3.2791,152.51,152.47,3.2796]
[1728993598415,6.52,152.53,152.45,1.357]
[1728993598609,3.2794,152.49,152.46,3.2799]
[1728993599010,6.52,152.53,152.45,1.357]
[1728993599911,3.2795,152.49,152.45,1.357]
[1728993600114,6.52,152.53,152.45,1.357]
[1728993600308,6.52,152.53,152.46,25.23]
[1728993600509,3.2788,152.52,152.49,3.2792]
[1728993600714,3.2788,152.52,152.46,25.23]
[1728993601217,6.52,152.55,152.46,25.23]
[1728993601422,6.52,152.55,152.45,2.6465]
[1728993601613,3.2789,152.52,152.49,3.2792]
[1728993601817,6.52,152.55,152.45,2.6465]
[1728993602513,25.23,152.53,152.4,26.5672]
[1728993602716,25.23,152.53,152.4,34.4165]
[1728993603322,3.2799,152.47,152.4,34.4165]
[1728993604620,3.2799,152.47,152.44,3.2804]
[1728993605122,3.28,152.46,152.44,3.2804]
[1728993605518,6.52,152.49,152.44,3.2804]
[1728993606127,3.2799,152.47,152.44,3.2804]
[1728993606430,3.2799,152.47,152.45,3.2801]
[1728993606431,3.31168143,152.47,152.45,3.2801]
[1728993606630,6.26,152.5,152.45,3.2801]
[1728993606827,3.2797,152.48,152.4,34.4165]
[1728993607131,6.49357359,152.48,152.44,3.2803]
[1728993607521,3.2798,152.47,152.44,3.2803]
[1728993607830,6.26,152.5,152.4,34.4165]
[1728993608034,3.2799,152.47,152.4,34.4165]
[1728993608532,9.58677928,152.5,152.4,34.4165]
[1728993608737,3.2794,152.49,152.42,25.23]
[1728993608921,3.32677928,152.5,152.46,3.2798]
[1728993609124,26.6178,152.57,152.45,25.23]
[1728993609421,1.3878,152.57,152.47,25.23]
[1728993609627,3.2782,152.55,152.48,10.342]
[1728993610128,3.2778,152.57,152.48,10.342]
[1728993610427,96.17,152.6,152.5,25.23]
[1728993610428,3.25916715,152.56,152.5,25.23]
[1728993610630,6.26,152.6,152.5,25.23]
[1728993610926,6.26,152.61,152.5,25.23]
[1728993611126,6.26,152.61,152.55,3.2779]
[1728993611523,9.52391755,152.61,152.52,6.26]
[1728993611722,3.26391755,152.61,152.56,3.2777]
[1728993611926,6.26,152.63,152.52,31.49]
[1728993612125,6.26,152.63,152.53,3.32361336]
[1728993612321,3.2769,152.61,152.57,3.2775]
[1728993612525,6.26,152.63,152.54,6.26]
[1728993612925,3.2772,152.59,152.55,3.2779]
[1728993613124,3.2772,152.59,152.54,6.26]
[1728993613325,6.26,152.63,152.54,6.26]
[1728993613631,3.3436213,152.64,152.54,31.49]
[1728993613830,6.26,152.65,152.54,31.49]
[1728993614027,9.48589095,152.65,152.54,31.49]
[1728993614230,25.23,152.64,152.52,25.23]
[1728993614425,25.23,152.64,152.52,31.49]
[1728993614632,25.23,152.62,152.5,25.23]
[1728993614826,6.26,152.61,152.53,1.63]
[1728993615337,3.2776,152.58,152.54,3.2782]
[1728993615537,3.36001613,152.57,152.53,1.63]
[1728993615726,6.26,152.61,152.53,1.63]
[1728993615927,3.2781,152.55,152.53,1.63]
[1728993616127,3.26688275,152.55,152.53,1.63]
[1728993616333,1.337,152.6,152.5,6.26]
[1728993616732,1.337,152.6,152.5,31.49]
[1728993616932,3.2774,152.59,152.55,3.2779]
[1728993617227,6.26,152.61,152.52,25.23]
[1728993617633,3.2771,152.6,152.57,3.2776]
[1728993618435,25.23,152.62,152.51,6.26]
[1728993618628,25.23,152.62,152.51,7.5886]
[1728993618833,3.2778,152.56,152.53,3.2784]
[1728993619043,25.23,152.62,152.51,1.3286]
[1728993619341,6.26,152.63,152.51,1.3286]
[1728993619543,3.2772,152.59,152.56,3.2778]
[1728993619740,6.26,152.63,152.52,25.23]
[1728993620039,3.2772,152.6,152.57,3.2775]
[1728993620236,6.26,152.63,152.51,1.3286]
[1728993620540,25.23,152.56,152.5,1.63]
[1728993620734,6.26,152.55,152.5,1.63]
[1728993621133,3.2789,152.51,152.5,1.63]
[1728993621538,7.664,152.55,152.45,26.5722]
[1728993621936,7.664,152.55,152.12,32.8717]
[1728993622240,25.23,152.47,152.42,1.64]
[1728993622437,6.26,152.46,152.42,1.64]
[1728993622641,3.2804,152.44,152.42,1.64]
[1728993623029,3.2804,152.44,152.39,3.2813]
[1728993623240,9.49889687,152.46,152.38,1.3636]
[1728993623437,9.49889687,152.46,152.34,7.633]
[1728993623741,9.49889687,152.46,152.4,3.2813]
[1728993623944,9.49889687,152.46,152.35,26.87]
[1728993624139,3.23889687,152.46,152.38,25.23]
[1728993624447,3.2802,152.45,152.4,3.2811]
[1728993624643,3.28233722,152.45,152.39,1.3636]